[Event "SuperChess Cup Blitz 2019"]
[Site "Bucharest"]
[Date "2019.11.10"]
[Round "13.2"]
[White "Istratescu, Andrei"]
[Black "Georgescu, Tiberiu-Marian"]
[Result "0-1"]
[ECO "D31"]
[WhiteElo "2604"]
[BlackElo "2373"]
[Annotator "ChessBase"]
[PlyCount "102"]
[EventDate "2019.11.06"]
[EventType "tourn"]
[EventCountry "ROU"]
[SourceTitle "playchess.com"]
[Source "ChessBase"]
[SourceQuality "1"]
[TimeMode "Bronstein"]
[TimeControl "300+3"]

1. d4 {[%emt 0:00:00]} d5 {[%emt 0:00:00]} 2. c4 {[%emt 0:00:00]} e6 {[%emt 0:00:00]} 3. Nc3 {[%emt 0:00:00]} a6 {[%emt 0:00:00]} 4. cxd5 {[%emt 0:00:09]} exd5 {[%emt 0:00:00]} 5. Bf4 {[%emt 0:00:07]} c6 {[%emt 0:00:00]} 6. e3 {[%emt 0:00:08]} Bd6 {[%emt 0:00:00]} 7. Bg3 {[%emt 0:00:03]} Bf5 {[%emt 0:00:26]} 8. Qb3 {[%emt 0:00:05]} Bxg3 {[%emt 0:00:29]} 9. hxg3 {[%emt 0:00:07]} Qe7 {[%emt 0:00:16]} 10. Nf3 {[%emt 0:00:34]} Nf6 {[%emt 0:00:03]} 11. Be2 {[%emt 0:00:25]} O-O {[%emt 0:00:04]} 12. Nh4 {[%emt 0:00:08]} Be6 {[%emt 0:00:12]} 13. Qc2 {[%emt 0:00:32]} Nbd7 {[%emt 0:00:30]} 14. Nf3 {[%emt 0:00:21]} g6 {[%emt 0:00:11]} 15. Bd3 {[%emt 0:00:46]} c5 {[%emt 0:00:03]} 16. dxc5 {[%emt 0:00:03]} Nxc5 {[%emt 0:00:03]} 17. Nd4 {[%emt 0:00:06]} Rac8 {[%emt 0:00:07]} 18. Qd2 {[%emt 0:00:16]} b5 {[%emt 0:00:14]} 19. a3 {[%emt 0:00:04]} Nfd7 {[%emt 0:00:15]} 20. f4 {[%emt 0:00:28]} Nb6 {[%emt 0:00:29]} 21. b3 {[%emt 0:00:25]} Rfe8 {[%emt 0:00:11]} 22. Kf2 {[%emt 0:00:05]} Bg4 {[%emt 0:00:20]} 23. Rhe1 {[%emt 0:00:03]} h5 {[%emt 0:00:14]} 24. Kg1 {[%emt 0:00:09]} h4 {[%emt 0:00:04]} 25. gxh4 Qxh4 {[%emt 0:00:03]} 26. Bf1 {[%emt 0:00:06]} Kg7 {[%emt 0:00:07]} 27. Nf3 {[%emt 0:00:18]} Bxf3 {[%emt 0:00:05]} 28. gxf3 {[%emt 0:00:03]} Rh8 {[%emt 0:00:08]} 29. Bg2 {[%emt 0:00:04]} Nxb3 {[%emt 0:00:13]} 30. Qb2 {[%emt 0:00:03]} Nxa1 {[%emt 0:00:14]} 31. Qxa1 {[%emt 0:00:11]} Kg8 {[%emt 0:00:03]} 32. a4 {[%emt 0:00:03]} Nxa4 {[%emt 0:00:08]} 33. Nxd5 {[%emt 0:00:03]} Rc2 {[%emt 0:00:35]} 34. Nf6+ {[%emt 0:00:03]} Kf8 {[%emt 0:00:03]} 35. Nd7+ {[%emt 0:00:08]} Kg8 {[%emt 0:00:13]} 36. Nf6+ Kf8 37. Nd7+ {[%emt 0:00:03]} Ke7 {[%emt 0:00:03]} 38. Qe5+ {[%emt 0:00:03]} Kxd7 {[%emt 0:00:03]} 39. Qd5+ {[%emt 0:00:03]} Kc7 {[%emt 0:00:07]} 40. Qe5+ {[%emt 0:00:03]} Kb6 {[%emt 0:00:03]} 41. Qd6+ {[%emt 0:00:04]} Rc6 42. Qd4+ Nc5 {[%emt 0:00:03]} 43. Rc1 {[%emt 0:00:03]} Qf6 44. Qd5 {[%emt 0:00:07]} Re8 {[%emt 0:00:05]} 45. f5 {[%emt 0:00:03]} Qxf5 {[%emt 0:00:03]} 46. Qd4 {[%emt 0:00:03]} Qe5 {[%emt 0:00:03]} 47. Qh4 {[%emt 0:00:03]} Qxe3+ {[%emt 0:00:03]} 48. Kh2 {[%emt 0:00:03]} Qxc1 {[%emt 0:00:03]} 49. f4 {[%emt 0:00:03]} g5 {[%emt 0:00:03]} 50. Qxg5 {[%emt 0:00:03]} Rh8+ {[%emt 0:00:03]} 51. Bh3 {[%emt 0:00:03]} Rch6 {[%emt 0:00:03]} 0-1

[Event "SuperChess Cup Blitz 2019"]
[Site "Bucharest"]
[Date "2019.11.10"]
[Round "13.3"]
[White "David, Alexandru-Vasile"]
[Black "Deac, Bogdan-Daniel"]
[Result "0-1"]
[ECO "D43"]
[WhiteElo "2361"]
[BlackElo "2544"]
[Annotator "ChessBase"]
[PlyCount "82"]
[EventDate "2019.11.06"]
[EventType "tourn"]
[EventCountry "ROU"]
[SourceTitle "playchess.com"]
[Source "ChessBase"]
[SourceQuality "1"]
[TimeMode "Bronstein"]
[TimeControl "300+3"]

1. d4 {[%emt 0:00:00]} d5 {[%emt 0:00:00]} 2. c4 {[%emt 0:00:00]} e6 {[%emt 0:00:00]} 3. Nc3 {[%emt 0:00:00]} c6 {[%emt 0:00:00]} 4. Nf3 {[%emt 0:00:00]} Nf6 {[%emt 0:00:00]} 5. Bg5 {[%emt 0:00:03]} h6 {[%emt 0:00:18]} 6. Bh4 {[%emt 0:00:14]} Nbd7 {[%emt 0:00:03]} 7. e3 {[%emt 0:00:08]} g5 {[%emt 0:00:03]} 8. Bg3 {[%emt 0:00:03]} Nh5 {[%emt 0:00:03]} 9. Qc2 {[%emt 0:00:04]} Nxg3 {[%emt 0:00:09]} 10. hxg3 {[%emt 0:00:06]} Bg7 {[%emt 0:00:03]} 11. O-O-O {[%emt 0:00:03]} Qe7 {[%emt 0:00:43]} 12. Bd3 {[%emt 0:00:03]} a6 {[%emt 0:00:12]} 13. cxd5 {[%emt 0:00:22]} cxd5 {[%emt 0:00:07]} 14. e4 {[%emt 0:00:03]} g4 {[%emt 0:00:18]} 15. Nh4 {[%emt 0:00:03]} dxe4 {[%emt 0:00:37]} 16. Bxe4 {[%emt 0:00:03]} Nf6 {[%emt 0:00:04]} 17. d5 {[%emt 0:00:39]} Nxe4 {[%emt 0:00:16]} 18. Qxe4 {[%emt 0:00:17]} Bxc3 {[%emt 0:00:40]} 19. bxc3 {[%emt 0:00:03]} exd5 {[%emt 0:00:03]} 20. Qd4 {[%emt 0:00:57]} Rg8 {[%emt 0:01:10]} 21. Qxd5 {[%emt 0:01:57]} Be6 {[%emt 0:00:08]} 22. Qd2 {[%emt 0:00:05]} Rc8 {[%emt 0:00:27]} 23. Kb2 {[%emt 0:00:27]} Rg5 {[%emt 0:00:04]} 24. Nf3 {[%emt 0:00:06]} gxf3 {[%emt 0:00:11]} 25. Rxh6 {[%emt 0:00:03]} Rg8 {[%emt 0:00:06]} 26. gxf3 {[%emt 0:00:03]} Rd8 {[%emt 0:00:06]} 27. Qe2 {[%emt 0:00:08]} Rxd1 {[%emt 0:00:03]} 28. Qxd1 {[%emt 0:00:03]} Qc5 {[%emt 0:00:03]} 29. Qd2 {[%emt 0:00:03]} Qg5 {[%emt 0:00:03]} 30. Qxg5 {[%emt 0:00:04]} Rxg5 {[%emt 0:00:03]} 31. a4 {[%emt 0:00:03]} Re5 {[%emt 0:00:03]} 32. Ka3 {[%emt 0:00:03]} Re2 {[%emt 0:00:03]} 33. Kb4 {[%emt 0:00:03]} Rxf2 {[%emt 0:00:03]} 34. f4 {[%emt 0:00:03]} b6 {[%emt 0:00:03]} 35. a5 {[%emt 0:00:03]} Rb2+ {[%emt 0:00:03]} 36. Ka3 {[%emt 0:00:03]} Rb3+ {[%emt 0:00:03]} 37. Ka2 {[%emt 0:00:03]} Rb5+ {[%emt 0:00:03]} 38. Ka3 {[%emt 0:00:03]} Rxa5+ {[%emt 0:00:03]} 39. Kb2 {[%emt 0:00:03]} Rb5+ {[%emt 0:00:03]} 40. Kc2 {[%emt 0:00:03]} a5 {[%emt 0:00:03]} 41. g4 {[%emt 0:00:03]} Bxg4 {[%emt 0:00:03]} 0-1

[Event "SuperChess Cup Blitz 2019"]
[Site "Bucharest"]
[Date "2019.11.10"]
[Round "13.4"]
[White "Miron, Lucian-Costin"]
[Black "Peptan, Corina-Isabela"]
[Result "1-0"]
[ECO "E39"]
[WhiteElo "2432"]
[BlackElo "2334"]
[Annotator "NA"]
[PlyCount "73"]
[EventDate "2019.11.06"]
[EventType "tourn"]
[EventCountry "ROU"]
[SourceTitle "playchess.com"]
[Source "ChessBase"]
[SourceQuality "1"]
[TimeMode "Bronstein"]
[TimeControl "300+3"]

1. d4 {[%emt 0:00:00]} Nf6 {[%emt 0:00:00]} 2. c4 {[%emt 0:00:00]} e6 {[%emt 0:00:00]} 3. Nc3 {[%emt 0:00:00]} Bb4 {[%emt 0:00:00]} 4. Qc2 {[%emt 0:00:00]} c5 {[%emt 0:00:00]} 5. dxc5 {[%emt 0:00:00]} O-O {[%emt 0:00:00]} 6. Nf3 {[%emt 0:00:00]} Nc6 {[%emt 0:00:27]} 7. g3 {[%emt 0:00:29]} Bxc5 {[%emt 0:00:10]} 8. Bg2 {[%emt 0:00:03]} b6 {[%emt 0:00:12]} 9. O-O {[%emt 0:00:03]} Bb7 {[%emt 0:00:03]} 10. Rd1 {[%emt 0:00:16]} h6 {[%emt 0:01:10]} 11. Bf4 {[%emt 0:00:10]} d5 {[%emt 0:00:08]} 12. a3 {[%emt 0:00:52]} a5 {[%emt 0:00:41]} 13. cxd5 {[%emt 0:00:12]} exd5 {[%emt 0:00:03]} 14. Nb5 {[%emt 0:00:06]} Qe7 {[%emt 0:00:11]} 15. Nfd4 {[%emt 0:00:21]} Nxd4 {[%emt 0:00:21]} 16. Nxd4 {[%emt 0:00:03]} Rac8 {[%emt 0:00:06]} 17. Qd3 {[%emt 0:00:17]} Bxd4 {[%emt 0:00:29]} 18. Qxd4 {[%emt 0:00:03]} Qxe2 {[%emt 0:00:03]} 19. Qxb6 {[%emt 0:00:48]} Ba8 {[%emt 0:00:03]} 20. Re1 {[%emt 0:00:19]} Qc2 {[%emt 0:00:03]} 21. Rac1 {[%emt 0:00:08]} Qa4 {[%emt 0:00:03]} 22. Rxc8 {[%emt 0:00:29]} Rxc8 {[%emt 0:00:03]} 23. Bxh6 {[%emt 0:00:15]} Re8 {[%emt 0:00:31]} 24. Rxe8+ {[%emt 0:00:10]} Qxe8 {[%emt 0:00:03]} 25. Be3 {[%emt 0:00:03]} Ng4 {[%emt 0:00:12]} 26. h3 {[%emt 0:00:05]} Nxe3 {[%emt 0:00:25]} 27. Qxe3 {[%emt 0:00:03]} Qa4 {[%emt 0:00:04]} 28. Qd2 {[%emt 0:00:05]} Qb5 {[%emt 0:00:06]} 29. b4 {[%emt 0:00:03]} axb4 {[%emt 0:00:04]} 30. Qxb4 {[%emt 0:00:06]} Qa6 {[%emt 0:00:11]} 31. a4 {[%emt 0:00:08]} Bc6 {[%emt 0:00:03]} 32. a5 {[%emt 0:00:03]} g6 {[%emt 0:00:08]} 33. Qb8+ {[%emt 0:00:12]} Kh7 {[%emt 0:00:05]} 34. Qc7 {[%emt 0:00:03]} Kg8 {[%emt 0:00:03]} 35. Bf1 {[%emt 0:00:03]} Bb5 {[%emt 0:00:03]} 36. Qb8+ {[%emt 0:00:05]} Kg7 {[%emt 0:00:04]} 37. Qxb5 {[%emt 0:00:03]} 1-0

[Event "SuperChess Cup Blitz 2019"]
[Site "Bucharest"]
[Date "2019.11.10"]
[Round "13.5"]
[White "Lupulescu, Constantin"]
[Black "Parligras, Mircea-Emilian"]
[Result "1/2-1/2"]
[ECO "C67"]
[WhiteElo "2525"]
[BlackElo "2458"]
[Annotator "ChessBase"]
[PlyCount "56"]
[EventDate "2019.11.06"]
[EventType "tourn"]
[EventCountry "ROU"]
[SourceTitle "playchess.com"]
[Source "ChessBase"]
[SourceQuality "1"]
[TimeMode "Bronstein"]
[TimeControl "300+3"]

1. e4 {[%emt 0:00:00]} e5 {[%emt 0:00:00]} 2. Nf3 {[%emt 0:00:00]} Nc6 {[%emt 0:00:00]} 3. Bb5 {[%emt 0:00:00]} Nf6 {[%emt 0:00:00]} 4. O-O {[%emt 0:00:00]} Nxe4 {[%emt 0:00:00]} 5. Re1 {[%emt 0:00:00]} Nd6 {[%emt 0:00:00]} 6. Nxe5 {[%emt 0:00:00]} Be7 {[%emt 0:00:00]} 7. Bf1 {[%emt 0:00:00]} Nxe5 {[%emt 0:00:00]} 8. Rxe5 {[%emt 0:00:00]} O-O {[%emt 0:00:00]} 9. d4 {[%emt 0:00:00]} Bf6 {[%emt 0:00:03]} 10. Re1 {[%emt 0:00:08]} Re8 {[%emt 0:00:06]} 11. c3 {[%emt 0:00:03]} Rxe1 {[%emt 0:00:18]} 12. Qxe1 {[%emt 0:00:06]} Ne8 {[%emt 0:00:05]} 13. Bf4 {[%emt 0:00:03]} d5 {[%emt 0:00:05]} 14. Bd3 {[%emt 0:00:03]} g6 {[%emt 0:00:05]} 15. Nd2 {[%emt 0:00:03]} Ng7 {[%emt 0:00:07]} 16. Qe2 {[%emt 0:00:05]} Bf5 {[%emt 0:00:08]} 17. Bxf5 {[%emt 0:00:03]} Nxf5 {[%emt 0:00:03]} 18. Re1 {[%emt 0:00:03]} c6 {[%emt 0:00:07]} 19. Nf3 {[%emt 0:00:09]} Ng7 {[%emt 0:00:09]} 20. h3 {[%emt 0:00:04]} Qd7 {[%emt 0:00:11]} 21. Be5 {[%emt 0:00:12]} Re8 {[%emt 0:00:11]} 22. Qd2 {[%emt 0:00:04]} Bxe5 {[%emt 0:00:12]} 23. Nxe5 {[%emt 0:00:03]} Qd6 {[%emt 0:00:17]} 24. Nd3 {[%emt 0:00:03]} Rxe1+ {[%emt 0:00:08]} 25. Qxe1 {[%emt 0:00:03]} f6 {[%emt 0:00:10]} 26. g4 {[%emt 0:00:04]} Kf7 {[%emt 0:00:06]} 27. Kg2 {[%emt 0:00:03]} Qe7 {[%emt 0:00:03]} 28. Qxe7+ {[%emt 0:00:03]} Kxe7 {[%emt 0:00:03]} 1/2-1/2

[Event "SuperChess Cup Blitz 2019"]
[Site "Bucharest"]
[Date "2019.11.10"]
[Round "14.1"]
[White "Gavrilescu, David"]
[Black "Lupulescu, Constantin"]
[Result "1/2-1/2"]
[ECO "B53"]
[WhiteElo "2274"]
[BlackElo "2525"]
[Annotator "ChessBase"]
[PlyCount "62"]
[EventDate "2019.11.06"]
[EventType "tourn"]
[EventCountry "ROU"]
[SourceTitle "playchess.com"]
[Source "ChessBase"]
[SourceQuality "1"]
[TimeMode "Bronstein"]
[TimeControl "300+3"]

1. e4 {[%emt 0:00:00]} c5 {[%emt 0:00:00]} 2. Nf3 {[%emt 0:00:00]} d6 {[%emt 0:00:00]} 3. d4 {[%emt 0:00:13]} cxd4 {[%emt 0:00:06]} 4. Qxd4 {[%emt 0:00:03]} a6 {[%emt 0:00:19]} 5. h3 {[%emt 0:00:03]} Nc6 {[%emt 0:00:03]} 6. Qe3 {[%emt 0:00:03]} Nf6 {[%emt 0:00:10]} 7. Be2 {[%emt 0:00:03]} e6 {[%emt 0:00:10]} 8. O-O {[%emt 0:00:05]} Be7 {[%emt 0:00:03]} 9. c4 {[%emt 0:00:03]} O-O {[%emt 0:00:04]} 10. Rd1 {[%emt 0:00:03]} Qc7 {[%emt 0:00:11]} 11. Nc3 {[%emt 0:00:04]} Ne5 {[%emt 0:00:10]} 12. b3 {[%emt 0:00:09]} b6 {[%emt 0:00:03]} 13. Bb2 {[%emt 0:00:04]} Bb7 {[%emt 0:00:03]} 14. Rac1 {[%emt 0:00:03]} Ned7 {[%emt 0:00:11]} 15. Bf1 {[%emt 0:00:22]} Rfe8 {[%emt 0:00:03]} 16. g4 {[%emt 0:00:45]} Nc5 {[%emt 0:00:19]} 17. Nd2 {[%emt 0:00:03]} h6 {[%emt 0:00:10]} 18. Bg2 {[%emt 0:00:03]} Nh7 {[%emt 0:00:07]} 19. Ne2 {[%emt 0:00:32]} Bf6 {[%emt 0:00:27]} 20. Bxf6 {[%emt 0:00:14]} Nxf6 {[%emt 0:00:03]} 21. Ng3 {[%emt 0:00:03]} Rad8 {[%emt 0:00:08]} 22. g5 {[%emt 0:00:29]} hxg5 {[%emt 0:00:04]} 23. Qxg5 {[%emt 0:00:03]} Qe7 {[%emt 0:00:14]} 24. Rc3 {[%emt 0:00:18]} a5 {[%emt 0:00:26]} 25. Re3 {[%emt 0:00:07]} Nh7 {[%emt 0:00:03]} 26. Qh5 {[%emt 0:00:09]} Qg5 {[%emt 0:00:24]} 27. Qe2 {[%emt 0:00:03]} Nf6 {[%emt 0:00:07]} 28. Nf3 {[%emt 0:00:03]} Qh6 {[%emt 0:00:10]} 29. Nh2 {[%emt 0:00:09]} Qg5 {[%emt 0:00:18]} 30. Nf3 {[%emt 0:00:04]} Qh6 {[%emt 0:00:03]} 31. Nh2 {[%emt 0:00:03]} Qg5 {[%emt 0:00:03]} 1/2-1/2

[Event "SuperChess Cup Blitz 2019"]
[Site "Bucharest"]
[Date "2019.11.10"]
[Round "14.2"]
[White "Parligras, Mircea-Emilian"]
[Black "Miron, Lucian-Costin"]
[Result "1/2-1/2"]
[ECO "D12"]
[WhiteElo "2458"]
[BlackElo "2432"]
[Annotator "ChessBase"]
[PlyCount "47"]
[EventDate "2019.11.06"]
[EventType "tourn"]
[EventCountry "ROU"]
[SourceTitle "playchess.com"]
[Source "ChessBase"]
[SourceQuality "1"]
[TimeMode "Bronstein"]
[TimeControl "300+3"]

1. d4 {[%emt 0:00:00]} d5 {[%emt 0:00:00]} 2. c4 {[%emt 0:00:00]} c6 {[%emt 0:00:00]} 3. Nf3 {[%emt 0:00:00]} Nf6 {[%emt 0:00:00]} 4. e3 {[%emt 0:00:00]} Bf5 {[%emt 0:00:00]} 5. Nc3 {[%emt 0:00:00]} e6 {[%emt 0:00:00]} 6. Nh4 {[%emt 0:00:00]} Be4 {[%emt 0:00:00]} 7. f3 {[%emt 0:00:00]} Bg6 {[%emt 0:00:00]} 8. Bd2 {[%emt 0:00:00]} Be7 {[%emt 0:00:00]} 9. Nxg6 {[%emt 0:00:00]} hxg6 {[%emt 0:00:00]} 10. Qc2 {[%emt 0:00:00]} a6 {[%emt 0:00:00]} 11. O-O-O {[%emt 0:00:01]} dxc4 {[%emt 0:00:00]} 12. Bxc4 {[%emt 0:00:01]} Nbd7 {[%emt 0:00:00]} 13. Ne4 {[%emt 0:00:06]} Rc8 {[%emt 0:00:09]} 14. Kb1 {[%emt 0:00:19]} Qc7 {[%emt 0:00:09]} 15. Nxf6+ {[%emt 0:00:22]} Nxf6 {[%emt 0:00:21]} 16. e4 {[%emt 0:00:09]} c5 {[%emt 0:01:16]} 17. e5 {[%emt 0:00:40]} Nd7 {[%emt 0:00:21]} 18. Bxe6 {[%emt 0:00:10]} fxe6 {[%emt 0:00:40]} 19. Qxg6+ {[%emt 0:00:03]} Kf8 {[%emt 0:00:04]} 20. Qxe6 {[%emt 0:00:03]} cxd4 {[%emt 0:00:07]} 21. Qf5+ {[%emt 0:00:35]} Kg8 {[%emt 0:00:03]} 22. Qe6+ {[%emt 0:00:09]} Kf8 {[%emt 0:00:03]} 23. Qf5+ {[%emt 0:00:13]} Kg8 {[%emt 0:00:03]} 24. Qe6+ {[%emt 0:00:03]} 1/2-1/2

[Event "SuperChess Cup Blitz 2019"]
[Site "Bucharest"]
[Date "2019.11.10"]
[Round "14.3"]
[White "Peptan, Corina-Isabela"]
[Black "David, Alexandru-Vasile"]
[Result "1-0"]
[ECO "E19"]
[WhiteElo "2334"]
[BlackElo "2361"]
[Annotator "NA"]
[PlyCount "119"]
[EventDate "2019.11.06"]
[EventType "tourn"]
[EventCountry "ROU"]
[SourceTitle "playchess.com"]
[Source "ChessBase"]
[SourceQuality "1"]
[TimeMode "Bronstein"]
[TimeControl "300+3"]

1. d4 {[%emt 0:00:00]} Nf6 {[%emt 0:00:00]} 2. c4 {[%emt 0:00:00]} e6 {[%emt 0:00:00]} 3. Nf3 {[%emt 0:00:00]} b6 {[%emt 0:00:00]} 4. g3 {[%emt 0:00:01]} Bb7 {[%emt 0:00:00]} 5. Bg2 {[%emt 0:00:01]} Be7 {[%emt 0:00:00]} 6. Nc3 {[%emt 0:00:01]} Ne4 {[%emt 0:00:00]} 7. Qc2 {[%emt 0:00:09]} Nxc3 {[%emt 0:00:00]} 8. Qxc3 {[%emt 0:00:03]} O-O {[%emt 0:00:00]} 9. O-O {[%emt 0:00:03]} Be4 {[%emt 0:00:01]} 10. Rd1 {[%emt 0:00:22]} d6 {[%emt 0:00:03]} 11. Bf1 {[%emt 0:00:23]} Nd7 {[%emt 0:00:04]} 12. Nd2 {[%emt 0:00:04]} Bb7 {[%emt 0:00:06]} 13. e4 {[%emt 0:00:05]} e5 {[%emt 0:00:04]} 14. d5 {[%emt 0:00:13]} Bf6 {[%emt 0:00:05]} 15. Bg2 {[%emt 0:00:06]} g6 {[%emt 0:00:03]} 16. b4 {[%emt 0:00:25]} Bg7 {[%emt 0:00:03]} 17. Nb3 {[%emt 0:00:04]} f5 {[%emt 0:00:12]} 18. c5 {[%emt 0:00:15]} Nf6 {[%emt 0:00:14]} 19. f3 {[%emt 0:00:19]} f4 {[%emt 0:00:36]} 20. gxf4 {[%emt 0:00:22]} Nh5 {[%emt 0:00:05]} 21. fxe5 {[%emt 0:00:28]} Bxe5 {[%emt 0:00:07]} 22. Nd4 {[%emt 0:00:03]} Qh4 {[%emt 0:00:21]} 23. h3 {[%emt 0:00:33]} bxc5 {[%emt 0:00:03]} 24. bxc5 {[%emt 0:00:03]} Qg3 {[%emt 0:00:03]} 25. a4 {[%emt 0:00:34]} Qh2+ {[%emt 0:00:21]} 26. Kf2 {[%emt 0:00:03]} Ba6 {[%emt 0:00:44]} 27. Rd3 {[%emt 0:00:24]} Bxd3 {[%emt 0:00:32]} 28. Qxd3 {[%emt 0:00:03]} Bxd4+ {[%emt 0:00:12]} 29. Qxd4 {[%emt 0:00:03]} Rxf3+ {[%emt 0:00:03]} 30. Kxf3 {[%emt 0:00:08]} Rf8+ {[%emt 0:00:03]} 31. Ke3 {[%emt 0:00:09]} Qxg2 {[%emt 0:00:16]} 32. Kd3 {[%emt 0:00:12]} Qf1+ {[%emt 0:00:08]} 33. Kc2 {[%emt 0:00:10]} Rf2+ {[%emt 0:00:12]} 34. Bd2 {[%emt 0:00:03]} Qg2 {[%emt 0:00:20]} 35. cxd6 {[%emt 0:00:07]} cxd6 {[%emt 0:00:04]} 36. Rb1 {[%emt 0:00:03]} Rxd2+ {[%emt 0:00:35]} 37. Qxd2 {[%emt 0:00:03]} Qxe4+ {[%emt 0:00:03]} 38. Kc3 {[%emt 0:00:09]} Nf4 {[%emt 0:00:06]} 39. Rb8+ {[%emt 0:00:05]} Kf7 {[%emt 0:00:04]} 40. Rb7+ {[%emt 0:00:03]} Ke8 {[%emt 0:00:05]} 41. Rb8+ {[%emt 0:00:07]} Kd7 {[%emt 0:00:03]} 42. Kb2 {[%emt 0:00:03]} Kc7 {[%emt 0:00:21]} 43. Rb3 {[%emt 0:00:04]} Nxd5 {[%emt 0:00:06]} 44. Qc2+ {[%emt 0:00:03]} Qxc2+ {[%emt 0:00:03]} 45. Kxc2 {[%emt 0:00:03]} g5 {[%emt 0:00:03]} 46. Rf3 {[%emt 0:00:03]} Nf4 {[%emt 0:00:03]} 47. h4 {[%emt 0:00:03]} h6 {[%emt 0:00:03]} 48. hxg5 {[%emt 0:00:03]} hxg5 {[%emt 0:00:03]} 49. Rg3 {[%emt 0:00:03]} Ne6 {[%emt 0:00:03]} 50. Kc3 {[%emt 0:00:03]} d5 {[%emt 0:00:03]} 51. Kb4 {[%emt 0:00:05]} d4 {[%emt 0:00:07]} 52. Kc4 {[%emt 0:00:03]} Kd6 {[%emt 0:00:03]} 53. Rg1 {[%emt 0:00:03]} a6 {[%emt 0:00:03]} 54. Re1 {[%emt 0:00:03]} Nc5 {[%emt 0:00:06]} 55. a5 {[%emt 0:00:03]} Ne6 {[%emt 0:00:03]} 56. Re4 {[%emt 0:00:03]} d3 {[%emt 0:00:03]} 57. Re1 {[%emt 0:00:08]} Nf4 {[%emt 0:00:03]} 58. Kc3 {[%emt 0:00:04]} g4 {[%emt 0:00:03]} 59. Re4 {[%emt 0:00:03]} Nd5+ 60. Kxd3 1-0

[Event "SuperChess Cup Blitz 2019"]
[Site "Bucharest"]
[Date "2019.11.10"]
[Round "14.4"]
[White "Deac, Bogdan-Daniel"]
[Black "Istratescu, Andrei"]
[Result "1/2-1/2"]
[ECO "C00"]
[WhiteElo "2544"]
[BlackElo "2604"]
[Annotator "ChessBase"]
[PlyCount "93"]
[EventDate "2019.11.06"]
[EventType "tourn"]
[EventCountry "ROU"]
[SourceTitle "playchess.com"]
[Source "ChessBase"]
[SourceQuality "1"]
[TimeMode "Bronstein"]
[TimeControl "300+3"]

1. e4 {[%emt 0:00:00]} e6 {[%emt 0:00:00]} 2. d4 {[%emt 0:00:10]} d5 {[%emt 0:00:00]} 3. Bd3 {[%emt 0:00:03]} dxe4 {[%emt 0:00:02]} 4. Bxe4 {[%emt 0:00:03]} Nf6 {[%emt 0:00:07]} 5. Bf3 {[%emt 0:00:03]} Bd6 {[%emt 0:00:22]} 6. Nc3 {[%emt 0:00:25]} O-O {[%emt 0:00:05]} 7. Nge2 {[%emt 0:00:03]} e5 {[%emt 0:00:44]} 8. Bg5 {[%emt 0:02:30]} h6 {[%emt 0:00:35]} 9. Bh4 {[%emt 0:00:15]} Nc6 {[%emt 0:01:06]} 10. Bxc6 {[%emt 0:00:55]} bxc6 {[%emt 0:00:03]} 11. O-O {[%emt 0:00:22]} Ba6 {[%emt 0:00:51]} 12. Re1 {[%emt 0:00:03]} Rb8 {[%emt 0:00:03]} 13. Rb1 {[%emt 0:00:26]} Re8 {[%emt 0:00:18]} 14. Ne4 {[%emt 0:00:13]} Be7 {[%emt 0:00:27]} 15. Bxf6 {[%emt 0:00:03]} Bxf6 {[%emt 0:00:03]} 16. Nxf6+ {[%emt 0:00:03]} Qxf6 {[%emt 0:00:03]} 17. dxe5 {[%emt 0:00:03]} Qxe5 {[%emt 0:00:05]} 18. Nc3 {[%emt 0:00:03]} Qxe1+ {[%emt 0:00:03]} 19. Qxe1 {[%emt 0:00:03]} Rxe1+ {[%emt 0:00:03]} 20. Rxe1 {[%emt 0:00:03]} Rxb2 {[%emt 0:00:03]} 21. Rc1 {[%emt 0:00:03]} Bc4 {[%emt 0:00:05]} 22. a3 {[%emt 0:00:03]} Be6 {[%emt 0:00:03]} 23. f3 {[%emt 0:00:03]} Bf5 {[%emt 0:00:03]} 24. Nd1 {[%emt 0:00:03]} Ra2 {[%emt 0:00:04]} 25. Ne3 {[%emt 0:00:03]} Be6 {[%emt 0:00:03]} 26. Kf2 {[%emt 0:00:03]} Rxa3 {[%emt 0:00:03]} 27. Rb1 {[%emt 0:00:03]} a5 {[%emt 0:00:04]} 28. Rb7 {[%emt 0:00:03]} a4 {[%emt 0:00:14]} 29. Ke2 {[%emt 0:00:03]} f5 {[%emt 0:00:10]} 30. f4 {[%emt 0:00:03]} Bd5 {[%emt 0:00:05]} 31. Nxf5 Be4 {[%emt 0:00:11]} 32. Ne3 {[%emt 0:00:04]} Ra1 {[%emt 0:00:03]} 33. Rxc7 {[%emt 0:00:03]} a3 {[%emt 0:00:03]} 34. Ra7 {[%emt 0:00:03]} a2 {[%emt 0:00:03]} 35. Kf2 {[%emt 0:00:03]} Kf8 {[%emt 0:00:04]} 36. f5 {[%emt 0:00:03]} Ke8 {[%emt 0:00:03]} 37. g4 {[%emt 0:00:03]} Bd5 {[%emt 0:00:04]} 38. Nxd5 {[%emt 0:00:03]} cxd5 {[%emt 0:00:03]} 39. Kg2 {[%emt 0:00:03]} Kf8 {[%emt 0:00:04]} 40. h4 {[%emt 0:00:03]} d4 {[%emt 0:00:03]} 41. g5 {[%emt 0:00:03]} hxg5 {[%emt 0:00:03]} 42. hxg5 {[%emt 0:00:03]} Kg8 {[%emt 0:00:03]} 43. Kh2 {[%emt 0:00:03]} Kf8 {[%emt 0:00:03]} 44. Kg2 {[%emt 0:00:03]} Kg8 {[%emt 0:00:03]} 45. Kh2 {[%emt 0:00:03]} Rf1 {[%emt 0:00:03]} 46. Rxa2 {[%emt 0:00:03]} Rxf5 {[%emt 0:00:03]} 47. Ra4 {[%emt 0:00:03]} 1/2-1/2